bitfinex-derivatives/quotes_ETHF0:USTF0_20240822
["timestamp","ask_amount","ask_price","bid_price","bid_amount"]
[1724311934683,2.33109836,2630.8,2630.7,0.37996]
[1724311934892,2.71103836,2630.8,2630.7,0.37996]
[1724311935186,0.72614,2630.8,2630.7,0.37996]
[1724311935392,2.33122232,2630.8,2630.7,0.37996]
[1724311936284,1.98502232,2630.8,2630.7,4.18076]
[1724311937977,2.85956287,2631.0,2630.8,0.37994]
[1724311938186,0.37993,2630.9,2630.8,0.37993]
[1724311938389,0.37994,2630.8,2630.5,0.3850677]
[1724311938579,1.48906115,2630.6,2630.5,0.3880477]
[1724311938774,3.46038486,2630.7,2630.6,0.37997]
[1724311938775,4.21448486,2630.7,2630.6,0.37997]
[1724311938978,4.21447486,2630.7,2630.6,0.37997]
[1724311939487,3.83451486,2630.7,2630.6,0.37997]
[1724311940088,3.83451486,2630.7,2630.6,4.18157]
[1724311940089,1.98541486,2630.7,2630.6,4.18157]
[1724311940393,3.08041486,2630.8,2630.7,0.37996]
[1724311940991,3.08041486,2630.8,2630.7,4.18076]
[1724311940992,1.98541486,2630.8,2630.7,4.18076]
[1724311941479,1.98541486,2630.8,2630.7,4.19326]
[1724311945686,3.95457287,2630.9,2630.8,0.37994]
[1724311945885,1.83403,2630.9,2630.8,0.37994]
[1724311947198,0.3591,2630.9,2630.8,0.37994]
[1724311947495,2.84328287,2630.9,2630.8,0.37994]
[1724311947701,1.83403,2630.9,2630.8,0.37994]
[1724311947898,3.93832366,2630.9,2630.8,0.37994]
[1724311948190,1.4541,2630.9,2630.8,0.37994]
[1724311951800,1.83403,2630.9,2630.8,0.37994]
[1724311952096,1.83403,2630.9,2630.7,0.37995]
[1724311952511,1.4541,2630.9,2630.7,0.37995]
[1724311952700,0.37997,2630.7,2630.5,0.3880477]
[1724311953001,3.93330615,2630.6,2630.5,0.3880477]
[1724311953202,4.69067615,2630.6,2630.5,0.3880477]
[1724311953402,4.69067615,2630.6,2630.5,4.1896477]
[1724311953794,4.31070615,2630.6,2630.5,4.1896477]
[1724311956305,1.8239,2630.6,2630.5,4.1896477]
[1724311957697,1.8239,2630.6,2630.5,0.3880477]
[1724311958602,1.8239,2630.6,2630.5,4.1896477]
[1724311959098,4.0730784,2630.7,2630.6,0.37997]
[1724311959291,3.84391313,2630.9,2630.7,1.32986]
[1724311959292,2.9780784,2630.8,2630.7,1.32986]
[1724311959490,0.3842,2631.0,2630.8,0.94986]
[1724311959704,0.3842,2631.0,2630.9,4.68273]
[1724311959916,0.3842,2631.0,2630.9,5.15792387]
[1724311960204,0.3842,2631.0,2630.9,8.95872387]
[1724311960408,4.0730784,2631.2,2631.1,0.3799]
[1724311960800,4.99843922,2631.3,2631.2,0.37988]
[1724311960801,3.7313784,2631.3,2631.2,0.37988]
[1724311961303,3.74021039,2631.3,2631.2,0.37988]
[1724311962102,3.74021039,2631.3,2631.1,0.37989]
[1724311962298,1.095,2631.2,2631.1,0.37989]
[1724311969601,1.8483,2631.3,2631.2,0.37988]
[1724311969801,0.3842,2631.3,2631.2,2.4246]
[1724311970111,4.46682714,2631.5,2631.4,0.37986]
[1724311970112,1.47991675,2631.5,2631.4,0.37986]
[1724311970307,1.85581675,2631.5,2631.4,0.37986]
[1724311970702,0.76081675,2631.5,2631.4,8.48266]
[1724311970904,0.76081675,2631.5,2631.4,9.43231]
[1724311970905,2.8719419,2631.5,2631.4,9.43231]
[1724311971306,0.38491675,2631.5,2631.4,9.43231]
[1724311971712,0.76498183,2631.5,2631.4,9.43231]
[1724311972018,0.76498183,2631.5,2631.4,8.48266]
[1724311972206,0.38491675,2631.5,2631.4,8.48266]
[1724311973214,2.37296977,2631.5,2631.4,8.48266]
[1724311973722,2.37296977,2631.5,2631.4,5.27486]
[1724311973902,2.37296977,2631.5,2631.4,8.48266]
[1724311975118,2.37296977,2631.5,2631.4,7.38766]
[1724311975315,1.47991675,2631.5,2631.4,3.58766]
[1724311975516,0.37986,2631.4,2631.3,0.37987]
[1724311975710,2.57534853,2631.4,2631.3,0.37987]
[1724311975914,2.19548853,2631.4,2631.3,0.37987]
[1724311978225,3.58523639,2631.4,2631.3,0.37987]
[1724311978819,3.94103639,2631.4,2631.3,0.37987]
[1724311979321,1.45628974,2631.4,2631.3,2.42455]
[1724311979519,1.45628974,2631.4,2631.3,6.22455]
[1724311979520,1.0762,2631.4,2631.3,6.22455]
[1724311979720,3.06380072,2631.4,2631.3,6.22455]
[1724311980023,1.0762,2631.4,2631.3,6.22455]
[1724311980420,5.03604014,2631.4,2631.3,0.37987]
[1724311981519,2.55129228,2631.4,2631.3,0.37987]
[1724311981720,5.03596275,2631.4,2631.3,0.37987]
[1724311982830,5.03598254,2631.4,2631.3,0.37987]
[1724311983131,2.93117207,2631.4,2631.3,0.37987]
[1724311984427,2.55131207,2631.4,2631.3,0.37987]
[1724311984732,2.93117207,2631.4,2631.3,0.37987]
[1724311985125,2.55131207,2631.4,2631.3,0.37987]
[1724311985424,2.93117207,2631.4,2631.3,0.37987]
[1724311985628,2.55131207,2631.4,2631.3,0.37987]
[1724311986931,1.45631207,2631.4,2631.3,0.37987]
[1724311987731,3.22984436,2631.4,2631.3,6.22455]
[1724311988035,0.3649,2631.4,2631.3,6.22455]
[1724311988934,0.3649,2631.4,2631.3,5.27487]
[1724311989119,1.83998951,2631.4,2631.3,0.37987]
[1724311989429,2.21984951,2631.4,2631.3,0.37987]
[1724311989819,1.83998951,2631.4,2631.3,0.37987]
[1724311990025,4.32483016,2631.4,2631.3,0.37987]
[1724311990236,4.32482864,2631.4,2631.3,0.37987]
[1724311991845,3.22982864,2631.4,2631.3,1.32955]
[1724311992142,3.22982193,2631.4,2631.3,1.32955]
[1724311992938,3.22982193,2631.4,2631.3,5.12955]
[1724311993545,0.3649,2631.4,2631.3,6.22455]
[1724311993851,2.86975588,2631.5,2631.4,0.37986]
[1724311993852,0.38491675,2631.5,2631.4,0.37986]
[1724311994047,2.37286911,2631.5,2631.4,0.37986]
[1724311994351,2.37286911,2631.5,2631.4,4.17986]
[1724311995339,2.37286911,2631.5,2631.4,5.12951]
[1724311995545,2.37286911,2631.5,2631.4,6.22451]
[1724311996640,2.37286911,2631.5,2631.4,5.12951]
[1724311996855,3.46786911,2631.5,2631.4,5.12951]
[1724311997246,1.47991675,2631.5,2631.4,0.37986]
[1724311999042,3.46801995,2631.5,2631.4,0.37986]
[1724311999240,1.47991675,2631.5,2631.4,0.37986]
[1724311999850,1.47991675,2631.5,2631.4,4.17986]
[1724312000154,0.38491675,2631.5,2631.4,4.17986]
[1724312001163,0.38491675,2631.5,2631.4,0.37986]
[1724312001346,4.34483374,2631.5,2631.4,0.37986]
[1724312001556,4.34483401,2631.5,2631.4,0.37986]
[1724312004153,1.85999488,2631.5,2631.4,0.37986]
[1724312005562,0.76499488,2631.5,2631.4,0.37986]
[1724312006258,0.76498838,2631.5,2631.4,0.37986]
[1724312007966,1.14482838,2631.5,2631.4,0.37986]
[1724312008160,0.37988,2631.3,2631.2,0.37988]
[1724312008460,0.75995163,2631.3,2631.2,0.37988]
[1724312008864,1.47987163,2631.3,2631.2,0.37988]
[1724312010273,0.37989,2631.2,2631.1,0.37989]
[1724312010466,0.94979,2631.0,2630.5,3.2158677]
[1724312010666,0.94979,2631.0,2630.5,3.5958577]
[1724312010667,1.095,2630.6,2630.5,3.5958577]
[1724312010873,1.47521512,2630.6,2630.5,0.3880577]
[1724312012572,0.38021512,2630.6,2630.5,0.3880577]
[1724312013462,0.38021512,2630.6,2630.5,3.5958577]
[1724312015074,0.38021512,2630.6,2630.5,0.0080677]
[1724312015478,4.56178512,2630.6,2630.5,0.0080677]
[1724312015664,7.54873798,2630.6,2630.5,0.0080677]
[1724312015869,0.38025759,2630.6,2630.5,0.0080677]
[1724312016071,4.56182759,2630.6,2630.5,0.0080677]
[1724312016469,7.54873798,2630.6,2630.5,0.0080677]
[1724312017167,4.56182759,2630.6,2630.5,0.0080677]
[1724312017565,0.76022759,2630.6,2630.5,0.0080677]
[1724312017773,4.56182759,2630.6,2630.5,0.0080677]
[1724312018977,2.48417352,2630.7,2630.5,0.3880577]
[1724312019770,2.86413352,2630.7,2630.5,0.0080677]
[1724312020168,0.3802189,2630.6,2630.5,0.0080677]
[1724312020372,2.86413352,2630.7,2630.5,0.0080677]
[1724312022878,2.48417352,2630.7,2630.5,0.0080677]
[1724312023474,3.24438164,2630.6,2630.5,0.0080677]
[1724312025187,3.24301395,2630.6,2630.5,0.0080677]
[1724312026177,7.99456395,2630.6,2630.5,0.0080677]
[1724312026472,5.51178694,2630.6,2630.5,0.0080677]
[1724312029181,4.56183694,2630.6,2630.5,0.0080677]
[1724312029987,4.56183602,2630.6,2630.5,0.0080677]
[1724312031186,5.51178602,2630.6,2630.5,0.0080677]
[1724312032484,6.60678602,2630.6,2630.5,0.0080677]
[1724312033281,6.65678602,2630.6,2630.5,0.0080677]
[1724312033680,9.1364173,2630.6,2630.5,0.0080677]
[1724312033875,6.65678602,2630.6,2630.5,0.0080677]
[1724312034885,6.65681378,2630.6,2630.5,0.0080677]
[1724312035289,9.86461378,2630.6,2630.5,0.0080677]
[1724312036689,12.34385138,2630.6,2630.5,0.0080677]
[1724312036890,9.86461416,2630.6,2630.5,0.0080677]
[1724312037090,12.34379875,2630.6,2630.5,0.0080677]
[1724312037680,12.34369699,2630.6,2630.5,0.0080677]
[1724312037891,9.86461416,2630.6,2630.5,0.0080677]
[1724312039608,9.86462246,2630.6,2630.5,0.0080677]
[1724312041782,6.65682246,2630.6,2630.5,0.0080677]
[1724312043003,6.64483,2630.6,2630.5,0.0080677]
[1724312043183,7.02511502,2630.6,2630.5,0.0080677]
[1724312046496,10.91516148,2630.6,2630.5,0.0080677]
[1724312047608,0.38006,2630.0,2629.8,3.5763]
[1724312047791,1.4728,2629.9,2629.8,3.2078]
[1724312047988,4.60141466,2629.9,2629.8,3.2078]
[1724312048286,4.60141466,2629.9,2629.6,0.38011]
[1724312048287,4.60143135,2629.9,2629.6,0.38011]
[1724312048492,2.58408663,2629.7,2629.6,0.38011]
[1724312048695,1.095,2629.7,2629.6,0.38321456]
[1724312049399,1.095,2629.7,2629.6,4.18561456]
[1724312049400,2.58447616,2629.7,2629.6,4.18561456]
[1724312049603,3.08045135,2629.8,2629.7,0.38011]
[1724312050596,1.095,2629.8,2629.7,0.38011]
[1724312050803,3.08190065,2629.8,2629.7,0.38011]
[1724312051606,1.095,2629.8,2629.7,0.38011]
[1724312052291,3.08249465,2629.8,2629.7,0.38011]
[1724312052494,3.08249465,2629.8,2629.7,0.39321]
[1724312052902,1.98749465,2629.8,2629.7,4.19561]
[1724312053106,1.99319028,2629.9,2629.8,0.38009]
[1724312053303,1.99319028,2629.9,2629.8,5.13273]
[1724312054698,0.00569563,2629.9,2629.8,5.13273]
[1724312054899,0.00569563,2629.9,2629.8,6.22773]
[1724312055409,2.48748896,2629.9,2629.8,6.22773]
[1724312056302,2.48748896,2629.9,2629.8,5.27749]
[1724312058013,2.48748896,2629.9,2629.8,8.48529]
[1724312060518,2.49480707,2629.9,2629.8,8.48529]
[1724312060712,2.87508619,2629.9,2629.8,8.48529]
[1724312061012,2.87508619,2629.9,2629.8,7.39029]
[1724312061399,0.38597475,2629.9,2629.8,7.39029]
[1724312062309,2.87546482,2629.9,2629.8,7.39029]
[1724312062502,0.3859845,2629.9,2629.8,7.39029]
[1724312064619,2.49528408,2629.9,2629.8,7.39029]
[1724312064806,0.3859845,2629.9,2629.8,7.39029]
[1724312065006,0.3859845,2629.9,2629.8,8.48529]
[1724312066110,2.49557135,2629.9,2629.8,9.43553]
[1724312066413,2.87586022,2629.9,2629.8,8.48529]
[1724312066821,0.3859845,2629.9,2629.8,8.48529]
[1724312067206,0.38598265,2629.9,2629.8,8.48529]
[1724312069209,0.38598265,2629.9,2629.8,5.27749]
[1724312069410,0.38598265,2629.9,2629.8,8.48529]
[1724312071927,0.38598136,2629.9,2629.8,8.48529]
[1724312073219,0.38598136,2629.9,2629.8,7.0102]
[1724312073423,3.75297175,2629.9,2629.8,7.0102]
[1724312073623,3.75300674,2629.9,2629.8,3.8024]
[1724312074515,3.37292674,2629.9,2629.8,3.8024]
[1724312075022,3.75300674,2629.9,2629.8,3.8024]
[1724312075215,0.38601635,2629.9,2629.8,4.18249]
[1724312075422,3.37292674,2629.9,2629.8,4.18249]
[1724312075724,3.75300674,2629.9,2629.8,3.8024]
[1724312075923,3.37292674,2629.9,2629.8,3.8024]
[1724312076120,3.37292674,2629.9,2629.7,1.4751]
[1724312076424,1.10942072,2629.8,2629.7,5.2775]
[1724312076629,1.10942072,2629.8,2629.7,1.4751]
[1724312076922,1.10942528,2629.8,2629.7,5.2775]
[1724312078219,1.10940564,2629.8,2629.7,5.2775]
[1724312078620,1.10940564,2629.8,2629.7,8.4853]
[1724312079326,1.10940564,2629.8,2629.7,5.2775]
[1724312080623,1.10940564,2629.8,2629.7,1.4751]
[1724312080824,1.10940564,2629.8,2629.7,5.2775]
[1724312081416,1.10940564,2629.8,2629.7,1.4751]
[1724312081622,1.10941398,2629.8,2629.7,5.2775]
[1724312081829,1.10941477,2629.8,2629.7,5.2775]
[1724312082533,0.38031477,2629.8,2629.7,5.2775]
[1724312082747,0.38031477,2629.8,2629.7,6.98437]
[1724312082938,0.00569563,2629.9,2629.8,1.33033]
[1724312083227,0.38597384,2629.9,2629.8,6.22773]
[1724312083425,0.38597384,2629.9,2629.8,7.17797]
[1724312084825,2.49808527,2629.9,2629.8,7.17797]
[1724312085025,2.87836348,2629.9,2629.8,7.17797]
[1724312085730,0.38597384,2629.9,2629.8,7.17797]
[1724312085932,2.49801079,2629.9,2629.8,7.17797]
[1724312086130,1.99385917,2629.9,2629.8,12.17797]
[1724312086325,0.11061857,2629.9,2629.8,16.58374295]
[1724312086527,1.49467528,2630.2,2629.9,3.8024]
[1724312086821,1.49467528,2630.2,2630.1,4.53798]
[1724312087026,1.49467528,2630.2,2630.1,25.94793391]
[1724312087223,1.49467528,2630.2,2630.1,34.19051]
[1724312087541,1.49467528,2630.2,2630.1,34.20361]
[1724312088427,1.49467528,2630.3,2630.2,1.33012]
[1724312088630,1.49467528,2630.3,2630.2,6.22672]
[1724312088837,1.49467528,2630.3,2630.2,11.22672]
[1724312089725,1.49467528,2630.3,2630.2,11.45242]
[1724312090328,1.50037091,2630.4,2630.3,0.38002]
[1724312090532,1.50037091,2630.4,2630.3,5.32569894]
[1724312090734,1.50037091,2630.4,2630.3,10.32569894]
[1724312091048,0.00569563,2630.4,2630.3,10.32569894]
[1724312091433,1.00048323,2630.4,2630.3,10.32569894]
[1724312092336,1.50037091,2630.4,2630.3,9.18162]
[1724312092633,0.00569563,2630.4,2630.3,9.18162]
[1724312092936,1.50037091,2630.4,2630.3,9.18162]
[1724312093235,1.84827091,2630.4,2630.3,9.18162]
[1724312093432,1.34818849,2630.4,2630.3,9.18162]
[1724312093739,1.34818849,2630.4,2630.3,9.55241751]
[1724312096537,1.34818849,2630.4,2630.3,4.55241751]
[1724312097230,1.34818849,2630.4,2630.3,5.50246751]
[1724312097436,0.35359563,2630.4,2630.3,5.50246751]
[1724312098739,0.00569563,2630.4,2630.3,5.50246751]
[1724312098937,0.99459286,2630.5,2630.4,1.33002]
[1724312099135,0.99459286,2630.5,2630.4,9.43442]
[1724312100139,0.99459286,2630.5,2630.4,15.38444]
[1724312100140,0.29558672,2630.5,2630.4,15.38444]
[1724312100329,0.99376806,2630.7,2630.6,1.32993]
[1724312100529,0.99376806,2630.7,2630.6,2.42493]
[1724312100733,1.35076806,2630.8,2630.7,0.37996]
[1724312100943,1.35076806,2630.8,2630.7,4.68276]
[1724312101242,1.35076806,2630.8,2630.7,8.48356]
[1724312101544,0.357,2630.8,2630.7,4.68276]
[1724312102040,0.357,2630.8,2630.7,8.48356]
[1724312103345,0.357,2630.8,2630.7,9.43347]
[1724312103931,0.357,2630.8,2630.7,5.63267]
[1724312104243,0.357,2630.8,2630.7,4.68276]
[1724312105234,0.357,2630.8,2630.7,8.48356]
[1724312105436,0.357,2630.8,2630.7,4.68276]
[1724312106241,0.357,2630.8,2630.7,8.48356]
[1724312107752,0.357,2630.8,2630.7,4.68276]
[1724312108048,0.357,2630.8,2630.7,8.48356]
[1724312108244,0.357,2630.8,2630.7,4.68276]
[1724312108441,0.357,2630.8,2630.7,8.48356]
[1724312108641,0.357,2630.8,2630.7,8.85479282]
[1724312109145,0.357,2630.8,2630.7,9.80470282]
[1724312109553,0.357,2630.8,2630.7,6.00390282]
[1724312109842,0.357,2630.8,2630.7,9.80470282]
[1724312110344,0.357,2630.8,2630.7,6.00390282]
[1724312111242,0.357,2630.8,2630.7,8.85479282]
[1724312111841,0.357,2630.8,2630.7,9.80470282]
[1724312112043,0.357,2630.8,2630.7,6.00390282]
[1724312115547,0.00569563,2631.0,2630.9,1.32977]
[1724312115740,0.00569563,2631.0,2630.9,4.32445]
[1724312115940,0.00569563,2631.0,2630.9,8.12525]
[1724312116746,0.00569563,2631.0,2630.9,2.42477]
[1724312117242,0.00569563,2631.0,2630.9,1.47493]
[1724312117755,0.00569563,2631.0,2630.9,2.42477]
[1724312118652,0.38839563,2631.0,2630.9,2.42477]
[1724312121454,0.38839563,2631.0,2630.9,5.63257]
[1724312121945,0.38839563,2631.0,2630.9,2.42477]
[1724312122145,0.38839563,2631.0,2630.9,5.63257]
[1724312124550,0.38839563,2631.0,2630.9,6.58241]
[1724312127146,0.38839563,2631.0,2630.9,3.37461]
[1724312127346,0.38839563,2631.0,2630.9,6.58241]
[1724312127956,0.38839563,2631.0,2630.9,3.58773]
[1724312128346,0.38839563,2631.0,2630.9,4.68273]
[1724312128347,1.38216369,2631.0,2630.9,4.68273]
[1724312128653,1.88307091,2631.0,2630.9,4.68273]
[1724312131252,0.38839563,2631.0,2630.9,4.68273]
[1724312135163,0.38839563,2631.0,2630.9,1.47493]
[1724312135359,0.38839563,2631.0,2630.9,4.68273]
[1724312136360,2.37174336,2631.0,2630.9,4.68273]
[1724312141470,0.38839563,2631.0,2630.9,4.68273]
[1724312143566,0.38839563,2631.0,2630.9,1.47493]
[1724312143771,0.76849523,2631.0,2630.9,1.47493]
[1724312144071,0.76849504,2631.0,2630.9,4.68273]
[1724312144258,3.24996839,2631.0,2630.9,1.47493]
[1724312144458,3.24996839,2631.0,2630.9,4.68273]
[1724312145270,3.24996839,2631.0,2630.9,3.58773]
[1724312145468,0.76849504,2631.0,2630.9,4.68273]
[1724312146869,0.768515,2631.0,2630.9,4.68273]
[1724312148968,2.87852024,2631.0,2630.9,4.68273]
[1724312149172,3.25863961,2631.0,2630.9,4.68273]
[1724312149766,0.768515,2631.0,2630.9,4.68273]
[1724312149969,0.38839563,2631.0,2630.9,4.68273]
[1724312150275,1.99770106,2631.0,2630.9,6.58241]
[1724312150470,0.7286379,2631.1,2631.0,1.32972]
[1724312150676,0.7286379,2631.1,2631.0,1.55562]
[1724312150872,0.7286379,2631.1,2631.0,3.48016541]
[1724312150873,0.99585477,2631.1,2631.0,3.48016541]
[1724312151068,0.99585477,2631.1,2631.0,23.38016541]
[1724312152186,0.99585477,2631.1,2631.0,22.82039503]
[1724312152380,0.99585477,2631.1,2631.0,21.82592]
[1724312154681,0.99585477,2631.1,2631.0,25.03372]
[1724312155573,0.99585477,2631.1,2631.0,24.08392]
[1724312157077,0.99585477,2631.1,2631.0,25.03372]
[1724312159576,0.99585477,2631.1,2631.0,24.80782]
[1724312160083,0.99585477,2631.1,2631.0,25.1756288]
[1724312160479,0.99585477,2631.1,2631.0,4.3258288]
[1724312160698,2.36980106,2631.3,2631.2,0.37989]
[1724312160987,2.36980106,2631.3,2631.2,1.47489]
[1724312162079,2.36980106,2631.3,2631.2,4.68269]
[1724312164275,0.37779563,2631.3,2631.2,4.68269]
[1724312164573,0.37779563,2631.3,2631.2,4.3028]
[1724312164775,8.52365927,2631.3,2631.2,3.2078]
[1724312164988,11.03353466,2631.3,2631.2,2.0536]
[1724312165281,0.37989,2631.2,2631.0,1.095]
[1724312165482,0.75996903,2631.1,2631.0,1.095]
[1724312165672,4.56076903,2631.1,2631.0,1.095]
[1724312165875,5.27586903,2631.1,2630.9,3.2078]
[1724312166083,4.18086903,2631.0,2630.9,3.2078]
[1724312166680,4.18086903,2631.0,2630.9,4.3028]
[1724312166881,0.37994,2630.9,2630.6,1.095]
[1724312167076,2.48891611,2630.7,2630.6,1.4581773]
[1724312167276,2.86898514,2630.7,2630.6,1.4581773]
[1724312167476,6.67058514,2630.7,2630.6,1.4581773]
[1724312168890,6.67058514,2630.7,2630.6,1.47497]
[1724312169889,6.67058514,2630.7,2630.6,1.095]
[1724312170881,4.18166903,2630.7,2630.6,1.095]
[1724312171085,6.67058514,2630.7,2630.6,1.095]
[1724312171385,3.8016,2630.7,2630.6,1.47497]
[1724312173488,5.79086754,2630.7,2630.6,1.47497]
[1724312173796,3.8016,2630.7,2630.6,1.47497]
[1724312174285,5.79079919,2630.7,2630.6,1.47497]
[1724312174486,1.98909613,2630.7,2630.6,1.47497]
[1724312175593,5.79069613,2630.7,2630.6,1.47497]
[1724312175889,1.98909613,2630.7,2630.6,1.47497]
[1724312176095,0.3636,2630.8,2630.7,0.37996]
[1724312176289,6.15398093,2630.8,2630.7,1.47496]
[1724312176690,4.1652,2630.8,2630.7,1.47496]
[1724312177195,0.3636,2630.8,2630.7,1.47496]
[1724312177994,4.5445647,2630.8,2630.7,1.47496]
[1724312178199,4.1644,2630.8,2630.7,1.47496]
[1724312178400,7.03348017,2630.8,2630.7,1.47496]
[1724312179400,4.54456406,2630.8,2630.7,1.47496]
[1724312180398,4.1644,2630.8,2630.7,1.47496]
[1724312181894,4.54457493,2630.8,2630.7,1.47496]
[1724312182099,7.03349104,2630.8,2630.7,1.47496]
[1724312182897,7.03349104,2630.8,2630.7,0.37996]
[1724312183098,7.03348604,2630.8,2630.7,0.37996]
[1724312184807,4.54456993,2630.8,2630.7,0.37996]
[1724312186403,4.1644,2630.8,2630.7,0.37996]
[1724312189506,0.3636,2630.8,2630.7,0.37996]
[1724312190301,2.35122766,2630.8,2630.7,1.47496]
[1724312191508,1.98762766,2630.8,2630.7,1.47496]
[1724312192318,1.98762766,2630.8,2630.7,0.37996]
[1724312192610,3.21921611,2630.9,2630.8,0.37995]
[1724312192802,3.97932668,2630.9,2630.7,0.37995]
[1724312192995,3.59915611,2630.9,2630.6,4.6662]
[1724312193199,1.98755704,2630.7,2630.6,5.04618]
[1724312193403,1.98755704,2630.7,2630.6,0.37998]
[1724312193609,3.8016,2630.7,2630.6,0.37998]
[1724312193811,4.1853,2630.7,2630.6,0.37998]
[1724312194209,6.17289436,2630.7,2630.6,0.37998]
[1724312196214,5.2803,2630.7,2630.5,0.37998]
[1724312196415,5.2803,2630.7,2630.4,4.3028]
[1724312196416,1.98737033,2630.6,2630.4,1.83507793]
[1724312196615,2.72767033,2630.5,2630.4,1.83507793]
[1724312197017,6.52927033,2630.5,2630.4,1.83507793]
[1724312198115,2.72767033,2630.5,2630.4,1.83507793]
[1724312198311,6.52927033,2630.5,2630.4,1.83507793]
[1724312202315,4.5419,2630.5,2630.4,1.83507793]
[1724312202620,6.53075708,2630.5,2630.4,1.83507793]
[1724312203324,0.7403,2630.5,2630.4,1.83507793]
[1724312203707,0.7403,2630.5,2630.4,5.61290793]
[1724312203708,1.98919088,2630.5,2630.4,5.61290793]
[1724312204213,1.98919088,2630.5,2630.4,5.99291793]
[1724312205109,2.48891611,2630.6,2630.5,0.37999]
[1724312205311,2.86910007,2630.6,2630.5,1.84999]
[1724312205510,2.86910007,2630.6,2630.5,2.21229]
[1724312207809,2.86910007,2630.6,2630.5,5.42009]
[1724312208021,0.38018396,2630.6,2630.5,5.42009]
[1724312209914,0.38018396,2630.6,2630.5,2.21229]
[1724312210528,0.38018396,2630.6,2630.5,3.16228]
[1724312210824,0.38018396,2630.6,2630.5,3.52898]
[1724312211525,0.38018396,2630.6,2630.5,2.57899]
[1724312211721,3.37061039,2630.7,2630.6,0.37998]
[1724312212024,3.75079309,2630.7,2630.6,0.37998]
[1724312215227,0.7638827,2630.7,2630.6,0.37998]
[1724312216424,0.76388893,2630.7,2630.6,0.37998]
[1724312216622,4.56548893,2630.7,2630.6,0.37998]
[1724312216818,8.05030206,2630.7,2630.6,0.37998]
[1724312217226,9.11024699,2630.7,2630.6,0.37998]
[1724312218118,9.11024053,2630.7,2630.6,0.37998]
[1724312218327,9.11024053,2630.7,2630.5,0.37998]
[1724312218535,1.47520723,2630.6,2630.4,0.74007793]
[1724312218729,4.13437128,2630.5,2630.4,0.74007793]
[1724312218930,3.75438128,2630.5,2630.4,0.74007793]
[1724312219933,0.76380723,2630.5,2630.4,0.74007793]
[1724312220128,3.75438128,2630.5,2630.4,0.38]
[1724312220830,3.7543924,2630.5,2630.4,1.475]
[1724312221019,0.38021835,2630.5,2630.4,1.475]
[1724312221530,0.38021835,2630.5,2630.4,2.5444]
[1724312222030,3.37391396,2630.7,2630.6,0.37998]
[1724312222331,3.75410584,2630.7,2630.6,1.47498]
[1724312224838,3.75409738,2630.7,2630.6,1.47498]
[1724312225033,3.75409738,2630.7,2630.6,2.42493]
[1724312225239,0.38018342,2630.7,2630.6,6.58268]
[1724312226233,0.38018342,2630.7,2630.6,5.63273]
[1724312226740,0.38018342,2630.7,2630.6,5.99575932]
[1724312228730,0.38018342,2630.7,2630.6,2.78795932]
[1724312229434,3.36181396,2630.8,2630.7,0.37996]
[1724312229736,3.74197506,2630.8,2630.7,1.47496]
[1724312229937,3.74197506,2630.8,2630.7,1.85806]
[1724312230830,3.74197506,2630.8,2630.7,0.37996]
[1724312231635,0.7517611,2630.8,2630.6,0.36302932]
[1724312231841,3.3706922,2630.7,2630.5,1.47498]
[1724312232033,3.3706922,2630.7,2630.4,0.38]
[1724312232034,3.3706922,2630.6,2630.4,0.38]
[1724312232335,0.3792,2630.5,2630.4,0.75045411]
[1724312232541,0.7593611,2630.5,2630.4,1.84545411]
[1724312236543,3.7498922,2630.5,2630.4,1.84545411]
[1724312236932,0.7593611,2630.5,2630.4,1.84545411]
[1724312237540,5.6559611,2630.5,2630.3,0.38002]
[1724312237733,0.7464611,2630.4,2630.3,0.38002]
[1724312238335,0.7464611,2630.4,2630.3,1.47502]
[1724312238742,0.74651733,2630.4,2630.3,1.47502]
[1724312243038,0.38021733,2630.4,2630.3,2.42508]
[1724312243246,2.49268699,2630.4,2630.3,6.22668]
[1724312243448,2.87290432,2630.4,2630.3,6.60398]
[1724312243644,0.38019549,2630.4,2630.3,6.60398]
[1724312244548,0.38019549,2630.4,2630.3,2.42508]
[1724312246345,0.3542,2630.5,2630.4,0.38001]
[1724312246544,0.3542,2630.5,2630.4,1.47501]
[1724312246848,0.3542,2630.5,2630.4,2.22351]
[1724312248242,3.3478311,2630.7,2630.6,0.37998]
[1724312248441,3.7097311,2630.7,2630.6,0.37998]
[1724312248949,0.7192,2630.7,2630.6,0.37998]
[1724312252646,3.7105785,2630.7,2630.6,0.37998]
[1724312253360,0.7192,2630.7,2630.6,0.37998]
[1724312255665,0.7192,2630.7,2630.6,2.42493]
[1724312255666,2.99144556,2630.7,2630.6,2.42493]
[1724312255851,3.48481313,2630.8,2630.7,1.32988]
[1724312255852,2.99144556,2630.8,2630.7,1.32988]
[1724312256048,2.99144556,2630.9,2630.8,0.37995]
[1724312256249,3.37159916,2630.9,2630.8,0.37995]
[1724312257758,3.3716016,2630.9,2630.8,0.37995]
[1724312259765,0.38015604,2630.9,2630.8,0.37995]
[1724312259961,2.99031074,2630.9,2630.8,0.37995]
[1724312260152,3.37046678,2630.9,2630.8,0.37995]
[1724312260352,4.95996917,2630.9,2630.8,0.37995]
[1724312260774,3.86496917,2630.9,2630.8,0.37995]
[1724312261457,3.37044502,2630.9,2630.8,0.37995]
[1724312261660,3.37044502,2630.9,2630.8,0.74735]
[1724312262462,3.37044254,2630.9,2630.8,0.74735]
[1724312263858,3.37044254,2630.9,2630.8,1.84235]
[1724312264057,3.37044254,2630.9,2630.8,6.95533]
[1724312264058,0.08062998,2630.9,2630.8,6.95533]
[1724312264252,2.39464627,2630.9,2630.8,6.95533]
[1724312264450,2.39464627,2631.0,2630.9,0.37994]
[1724312264777,2.39464627,2631.0,2630.9,3.58774]
[1724312266463,0.35989563,2631.3,2631.2,0.37989]
[1724312266660,0.35989563,2631.3,2631.2,1.47489]
[1724312267158,5.25569563,2631.3,2630.9,3.2078]
[1724312267464,4.44518461,2631.3,2631.0,1.47491]
[1724312267657,0.3838,2631.2,2631.0,1.47491]
[1724312268364,0.3838,2631.2,2631.1,0.37991]
[1724312274165,0.76391336,2631.2,2631.1,0.37991]
[1724312276563,0.76391498,2631.2,2631.1,0.37991]
[1724312277569,0.76391304,2631.2,2631.1,0.37991]